fUSD/lending_fUSD_20240329
["ID","MTS","AMOUNT","RATE_DAILY","PERIOD"]
[320947752,1711720299222,-500.0,0.00053698,120]
[320947753,1711720299237,-1990.61,0.00053698,120]
[320947754,1711720299251,-500.0,0.00053698,120]
[320947755,1711720299266,-500.0,0.00053698,120]
[320947756,1711720299282,-500.0,0.00053698,120]
[320947757,1711720299296,-817.16,0.00053698,120]
[320947758,1711720299310,-1229.22,0.00053698,120]
[320947759,1711720299325,-500.0,0.00053698,120]
[320947760,1711720299339,-553.19,0.00053698,120]
[320947761,1711720299353,-770.3,0.00053698,120]
[320947762,1711720299369,-4469.38,0.00053698,120]
[320947763,1711720299386,-679.26,0.00053698,120]
[320947764,1711720299401,-713.39,0.00053698,120]
[320947765,1711720299417,-885.4,0.00053698,120]
[320947766,1711720299433,-1238.51,0.00053698,120]
[320947767,1711720299448,-1635.01,0.00053698,120]
[320947768,1711720299661,-576.18,0.00053698,120]
[320947769,1711720299674,-855.16,0.00053698,120]
[320947770,1711720299686,-561.56,0.00053698,120]
[320947771,1711720299697,-531.08,0.00053698,120]
[320947772,1711720299707,-534.13,0.00053698,120]
[320947773,1711720299718,-6532.1,0.00053698,120]
[320947774,1711720299728,-523.64,0.00053698,120]
[320947775,1711720299737,-560.66,0.00053698,120]
[320947776,1711720299748,-723.57,0.00053698,120]
[320947777,1711720299758,-502.42,0.00053698,120]
[320947778,1711720299768,-1682.83,0.00053698,120]
[320947779,1711720299778,-638.67,0.00053698,120]
[320947780,1711720299788,-503.68,0.00053698,120]
[320947781,1711720299798,-1618.73,0.00053698,120]
[320947782,1711720299808,-3551.69,0.00053698,120]
[320947783,1711720299818,-500.0,0.00053698,120]
[320947784,1711720299828,-1902.79,0.00053698,120]
[320947785,1711720299838,-500.0,0.00053698,120]
[320947786,1711720299848,-523.06,0.00053698,120]
[320947787,1711720299858,-1110.8,0.00053698,120]
[320947788,1711720299868,-783.41,0.00053698,120]
[320947789,1711720299877,-500.0,0.00053698,120]
[320947790,1711720299887,-516.74,0.00053698,120]
[320947791,1711720299897,-500.0,0.00053698,120]
[320947792,1711720299907,-728.83,0.00053698,21]
[320947793,1711720299917,-1108.05,0.00053698,120]
[320947794,1711720299927,-988.84,0.00053698,120]
[320947795,1711720299937,-500.0,0.00053698,120]
[320947796,1711720299948,-500.0,0.00053698,120]
[320947797,1711720299958,-627.93,0.00053698,120]
[320947798,1711720299968,-500.0,0.00053698,120]
[320947799,1711720299978,-743.49,0.00053698,120]
[320947800,1711720299988,-1845.14,0.00053698,120]
[320947801,1711720299998,-826.94,0.00053698,120]
[320947802,1711720300008,-838.3,0.00053698,120]
[320947803,1711720300018,-679.1,0.00053698,120]
[320947804,1711720300029,-2055.89,0.00053698,120]
[320947805,1711720300040,-617.83,0.00053698,120]
[320947806,1711720300051,-1240.17,0.00053698,120]
[320947807,1711720300061,-663.18,0.00053698,120]
[320947808,1711720300071,-500.0,0.00053698,120]
[320947809,1711720300081,-1451.79,0.00053698,120]
[320947810,1711720300095,-500.0,0.00053698,120]
[320947811,1711720300105,-500.0,0.00053698,2]
[320947812,1711720300115,-383.6,0.00053808,2]
[320947813,1711720300126,-1137.41,0.00053861,120]
[320947814,1711720300136,-346.48,0.00053861,120]
[320947815,1711720300146,-169.96,0.00053861,120]
[320947816,1711720300156,-189.8,0.00053861,120]
[320947817,1711720300166,-500.0,0.00053861,2]
[320947818,1711720300178,-514.89,0.0005387,120]
[320947819,1711720300189,-508.99,0.0005387,120]
[320947820,1711720300199,-565.0,0.0005387,120]
[320947821,1711720300210,-1498.86,0.000539,120]
[320947822,1711720300220,-523.0,0.000539,40]
[320947823,1711720300231,-1003.04,0.0005394,2]
[320947824,1711720300242,-500.0,0.00053972,120]
[320947825,1711720300252,-494.91,0.00053972,120]
[320947826,1711720300263,-169.68,0.00053972,120]
[320947827,1711720300276,-867.0,0.00053972,120]
[320947828,1711720300286,-500.0,0.00053972,120]
[320947829,1711720300296,-627.18,0.00053972,120]
[320947830,1711720300307,-714.94,0.00053972,120]
[320947831,1711720300317,-538.01,0.00053972,120]
[320947832,1711720300327,-1007.7,0.00053972,120]
[320947833,1711720300337,-686.37,0.00053972,120]
[320947834,1711720300348,-982.95,0.00053972,120]
[320947835,1711720300358,-500.0,0.00053972,120]
[320947836,1711720300368,-774.88,0.00053972,120]
[320947837,1711720300379,-679.79,0.00053972,120]
[320947838,1711720300389,-500.0,0.00053972,120]
[320947839,1711720300399,-500.0,0.00053972,120]
[320947840,1711720300413,-853.69,0.00053972,120]
[320947841,1711720300424,-896.8,0.00053972,120]
[320947842,1711720300434,-786.23,0.00053972,120]
[320947843,1711720300444,-522.53,0.00053972,120]
[320947844,1711720300455,-594.23,0.00053972,120]
[320947845,1711720300466,-9880.52,0.00053972,120]
[320947846,1711720300477,-1749.42,0.00053972,120]
[320947847,1711720300488,-501.14,0.00053972,120]
[320947848,1711720300499,-573.33,0.00053972,120]
[320947849,1711720300510,-512.31,0.00053972,120]
[320947850,1711720300520,-500.0,0.00053972,120]
[320947851,1711720300530,-500.0,0.00053972,120]
[320947852,1711720300540,-545.68,0.00053972,120]
[320947853,1711720300551,-500.0,0.00053972,120]
[320947854,1711720300560,-500.0,0.00053972,120]
[320947855,1711720300570,-1990.61,0.00053972,120]
[320947856,1711720300580,-624.42,0.00053972,120]
[320947857,1711720300591,-447.29130243,0.00053972,120]
[320947858,1711720300601,-500.0,0.00053972,120]
[320947859,1711720300611,-1229.22,0.00053972,120]
[320947860,1711720300621,-817.16,0.00053972,120]
[320947861,1711720300631,-500.0,0.00053972,120]
[320947862,1711720300641,-553.19,0.00053972,120]
[320947863,1711720300651,-770.3,0.00053972,120]
[320947864,1711720300661,-4469.38,0.00053972,120]
[320947865,1711720300673,-679.26,0.00053972,120]
[320947866,1711720300684,-713.39,0.00053972,120]
[320947867,1711720300693,-885.4,0.00053972,120]
[320947868,1711720300703,-1238.51,0.00053972,120]
[320947869,1711720300713,-1635.01,0.00053972,120]
[320947870,1711720300724,-576.18,0.00053972,120]
[320947871,1711720300735,-855.16,0.00053972,120]
[320947872,1711720300746,-531.08,0.00053972,120]
[320947873,1711720300757,-534.13,0.00053972,120]
[320947874,1711720300768,-6532.1,0.00053972,120]
[320947875,1711720300778,-523.64,0.00053972,120]
[320947876,1711720300789,-560.66,0.00053972,120]
[320947877,1711720300801,-723.57,0.00053972,120]
[320947878,1711720300812,-502.42,0.00053972,120]
[320947879,1711720300823,-1682.83,0.00053972,120]
[320947880,1711720300833,-638.67,0.00053972,120]
[320947881,1711720300844,-503.68,0.00053972,120]
[320947882,1711720300854,-1618.73,0.00053972,120]
[320947883,1711720300865,-3551.69,0.00053972,120]
[320947884,1711720300875,-500.0,0.00053972,120]
[320947885,1711720300886,-1902.79,0.00053972,120]
[320947886,1711720300896,-500.0,0.00053972,120]
[320947887,1711720300907,-523.06,0.00053972,120]
[320947888,1711720300917,-1110.8,0.00053972,120]
[320947889,1711720300928,-783.41,0.00053972,120]
[320947890,1711720300938,-500.0,0.00053972,120]
[320947891,1711720300948,-516.74,0.00053972,120]
[320947892,1711720300958,-500.0,0.00053972,120]
[320947893,1711720300968,-728.83,0.00053972,21]
[320947894,1711720300979,-1108.05,0.00053972,120]
[320947895,1711720300989,-988.84,0.00053972,120]
[320947896,1711720301000,-500.0,0.00053972,120]
[320947897,1711720301010,-212.88,0.00053972,120]
[320947898,1711720301020,-627.93,0.00053972,120]
[320947899,1711720301031,-500.0,0.00053972,120]
[320947900,1711720301041,-743.49,0.00053972,120]
[320947901,1711720301051,-1845.14,0.00053972,120]
[320947902,1711720301062,-826.94,0.00053972,120]
[320947903,1711720301072,-838.3,0.00053972,120]
[320947904,1711720301082,-679.1,0.00053972,120]
[320947905,1711720301093,-2055.89,0.00053972,120]
[320947906,1711720301103,-617.83,0.00053972,120]
[320947907,1711720301114,-1240.17,0.00053972,120]
[320947908,1711720301125,-663.18,0.00053972,120]
[320947909,1711720301135,-500.0,0.00053972,120]
[320947910,1711720301145,-1451.79,0.00053972,120]
[320947911,1711720301156,-500.0,0.00053972,120]
[320947912,1711720301166,-500.0,0.00053972,2]
[320947913,1711720301178,-230.4,0.00054027,120]
[320947914,1711720301188,-152.91,0.000541,7]
[320947915,1711720301198,-152.91,0.000541,7]
[320947916,1711720301209,-1584.51,0.000541,7]
[320947917,1711720301219,-1584.51,0.000541,7]
[320947918,1711720301230,-1584.51,0.000541,7]
[320947919,1711720301241,-1584.51,0.000541,7]
[320947920,1711720301251,-1584.51,0.000541,7]
[320947921,1711720301261,-1584.51,0.000541,7]
[320947922,1711720301272,-1584.51,0.000541,7]
[320947923,1711720301283,-1584.51,0.000541,7]
[320947924,1711720301293,-1584.51,0.000541,7]
[320947925,1711720301304,-1584.51,0.000541,7]
[320947926,1711720301315,-1584.51,0.000541,7]
[320947927,1711720301326,-1584.51,0.000541,7]
[320947928,1711720301338,-1584.51,0.000541,7]
[320947929,1711720301348,-1584.51,0.000541,7]
[320947930,1711720301360,-1584.51,0.000541,7]
[320947931,1711720301370,-1584.51,0.000541,7]
[320947932,1711720301381,-1584.51,0.000541,7]
[320947933,1711720301396,-1584.51,0.000541,7]
[320947934,1711720301407,-1584.51,0.000541,7]
[320947935,1711720301418,-1584.51,0.000541,7]
[320947936,1711720301431,-17598.0,0.000541,120]
[320947937,1711720301442,-1137.41,0.00054135,120]
[320947938,1711720301452,-500.0,0.00054135,2]
[320947939,1711720301463,-508.99,0.00054144,120]
[320947940,1711720301473,-1003.04,0.000542,2]
[320947941,1711720301485,-301.7,0.000542,2]
[320947942,1711720301497,-615.87,0.00054246,120]
[320947943,1711720301508,-867.0,0.00054246,120]
[320947944,1711720301519,-500.0,0.00054246,120]
[320947945,1711720301530,-627.18,0.00054246,120]
[320947946,1711720301541,-714.94,0.00054246,120]
[320947947,1711720301551,-538.01,0.00054246,120]
[320947948,1711720301562,-1007.7,0.00054246,120]
[320947949,1711720301573,-686.37,0.00054246,120]
[320947950,1711720301583,-982.95,0.00054246,120]
[320947951,1711720301593,-500.0,0.00054246,120]
[320947952,1711720301603,-774.88,0.00054246,120]
[320947953,1711720301613,-679.79,0.00054246,120]
[320947954,1711720301623,-500.0,0.00054246,120]
[320947955,1711720301632,-500.0,0.00054246,120]
[320947956,1711720301642,-853.69,0.00054246,120]
[320947957,1711720301652,-896.8,0.00054246,120]
[320947958,1711720301661,-786.23,0.00054246,120]
[320947959,1711720301672,-522.53,0.00054246,120]
[320947960,1711720301682,-594.23,0.00054246,120]
[320947961,1711720301691,-9880.52,0.00054246,120]
[320947962,1711720301701,-1749.42,0.00054246,120]
[320947963,1711720301710,-573.33,0.00054246,120]
[320947964,1711720301721,-512.31,0.00054246,120]
[320947965,1711720301731,-500.0,0.00054246,120]
[320947966,1711720301741,-500.0,0.00054246,120]
[320947967,1711720301751,-545.68,0.00054246,120]
[320947968,1711720301761,-622.71,0.00054246,120]
[320947969,1711720301771,-500.0,0.00054246,120]
[320947970,1711720301780,-1990.61,0.00054246,120]
[320947971,1711720301789,-500.0,0.00054246,120]
[320947972,1711720301799,-1229.22,0.00054246,120]
[320947973,1711720301808,-817.16,0.00054246,120]
[320947974,1711720301818,-526.98,0.00054246,120]
[320947975,1711720301827,-553.19,0.00054246,120]
[320947976,1711720301836,-770.3,0.00054246,120]
[320947977,1711720301846,-4469.38,0.00054246,120]
[320947978,1711720301856,-679.26,0.00054246,120]
[320947979,1711720301866,-713.39,0.00054246,120]
[320947980,1711720301875,-885.4,0.00054246,120]
[320947981,1711720301884,-1238.51,0.00054246,120]
[320947982,1711720301894,-1635.01,0.00054246,120]
[320947983,1711720301904,-576.18,0.00054246,120]
[320947984,1711720301914,-855.16,0.00054246,120]
[320947985,1711720301925,-531.08,0.00054246,120]
[320947986,1711720301934,-534.13,0.00054246,120]
[320947987,1711720301944,-6532.1,0.00054246,120]
[320947988,1711720301954,-523.64,0.00054246,120]
[320947989,1711720301964,-560.66,0.00054246,120]
[320947990,1711720301975,-723.57,0.00054246,120]
[320947991,1711720301985,-502.42,0.00054246,120]
[320947992,1711720301995,-1682.83,0.00054246,120]
[320947993,1711720302005,-638.67,0.00054246,120]
[320947994,1711720302147,-503.68,0.00054246,120]
[320947995,1711720302157,-1618.73,0.00054246,120]
[320947996,1711720302168,-3551.69,0.00054246,120]
[320947997,1711720302179,-1046.84,0.00054246,120]
[320947998,1711720302190,-500.0,0.00054246,120]
[320947999,1711720302200,-1902.79,0.00054246,120]
[320948000,1711720302210,-523.06,0.00054246,120]
[320948001,1711720302220,-500.0,0.00054246,120]
[320948002,1711720302230,-1110.8,0.00054246,120]
[320948003,1711720302239,-783.41,0.00054246,120]
[320948004,1711720302249,-500.0,0.00054246,120]
[320948005,1711720302259,-516.74,0.00054246,120]
[320948006,1711720302268,-500.0,0.00054246,120]
[320948007,1711720302278,-728.83,0.00054246,21]
[320948008,1711720302289,-1108.05,0.00054246,120]
[320948009,1711720302299,-988.84,0.00054246,120]
[320948010,1711720302309,-371.93,0.00054246,120]
[320948011,1711720302319,-627.93,0.00054246,120]
[320948012,1711720302330,-500.0,0.00054246,120]
[320948013,1711720302340,-743.49,0.00054246,120]
[320948014,1711720302349,-1845.14,0.00054246,120]
[320948015,1711720302358,-826.94,0.00054246,120]
[320948016,1711720302367,-838.3,0.00054246,120]
[320948017,1711720302377,-679.1,0.00054246,120]
[320948018,1711720302388,-2055.89,0.00054246,120]
[320948019,1711720302398,-617.83,0.00054246,120]
[320948020,1711720302410,-1240.17,0.00054246,120]
[320948021,1711720302419,-663.18,0.00054246,120]
[320948022,1711720302430,-500.0,0.00054246,120]
[320948023,1711720302439,-1451.79,0.00054246,120]
[320948024,1711720302449,-500.0,0.00054246,120]
[320948025,1711720302458,-500.0,0.00054246,2]
[320948026,1711720302468,-150.0,0.00054257,30]
[320948027,1711720302477,-1400.0,0.00054257,120]
[320948028,1711720302488,-151.0,0.00054274,120]
[320948029,1711720302498,-210.06,0.000543,7]
[320948030,1711720302509,-523.0,0.000544,40]
[320948031,1711720302518,-1137.41,0.00054409,120]
[320948032,1711720302527,-555.34,0.00054409,2]
[320948033,1711720302537,-508.99,0.00054418,120]
[320948034,1711720302546,-867.0,0.0005452,120]
[320948035,1711720302556,-500.0,0.0005452,120]
[320948036,1711720302565,-627.18,0.0005452,120]
[320948037,1711720302575,-714.94,0.0005452,120]
[320948038,1711720302584,-538.01,0.0005452,120]
[320948039,1711720302593,-1007.7,0.0005452,120]
[320948040,1711720302603,-686.37,0.0005452,120]
[320948041,1711720302613,-982.95,0.0005452,120]
[320948042,1711720302623,-500.0,0.0005452,120]
[320948043,1711720302632,-774.88,0.0005452,120]
[320948044,1711720302643,-679.79,0.0005452,120]
[320948045,1711720302652,-500.0,0.0005452,120]
[320948046,1711720302661,-402.31,0.0005452,120]
[320948047,1711720302671,-853.69,0.0005452,120]
[320948048,1711720302680,-896.8,0.0005452,120]
[320948049,1711720302689,-786.23,0.0005452,120]
[320948050,1711720302699,-522.53,0.0005452,120]
[320948051,1711720302709,-594.23,0.0005452,120]
[320948052,1711720302718,-9880.52,0.0005452,120]
[320948053,1711720302728,-1749.42,0.0005452,120]
[320948054,1711720302738,-573.33,0.0005452,120]
[320948055,1711720302747,-512.31,0.0005452,120]
[320948056,1711720302757,-219.24,0.0005452,120]
[320948057,1711720302766,-500.0,0.0005452,120]
[320948058,1711720302775,-545.68,0.0005452,120]
[320948059,1711720302784,-500.0,0.0005452,120]
[320948060,1711720302794,-1990.61,0.0005452,120]
[320948061,1711720302803,-500.0,0.0005452,120]
[320948062,1711720302813,-1229.22,0.0005452,120]
[320948063,1711720302822,-817.16,0.0005452,120]
[320948064,1711720302832,-553.19,0.0005452,120]
[320948065,1711720302841,-770.3,0.0005452,120]
[320948066,1711720302851,-4469.38,0.0005452,120]
[320948067,1711720302861,-679.26,0.0005452,120]
[320948068,1711720302871,-713.39,0.0005452,120]
[320948069,1711720302880,-885.4,0.0005452,120]
[320948070,1711720302890,-1238.51,0.0005452,120]
[320948071,1711720302899,-1635.01,0.0005452,120]
[320948072,1711720302909,-576.18,0.0005452,120]
[320948073,1711720302919,-855.16,0.0005452,120]
[320948074,1711720302931,-531.08,0.0005452,120]
[320948075,1711720302941,-534.13,0.0005452,120]
[320948076,1711720302950,-523.64,0.0005452,120]
[320948077,1711720302960,-6532.1,0.0005452,120]
[320948078,1711720302969,-560.66,0.0005452,120]
[320948079,1711720302979,-723.57,0.0005452,120]
[320948080,1711720302989,-502.42,0.0005452,120]
[320948081,1711720302998,-1682.83,0.0005452,120]
[320948082,1711720303008,-638.67,0.0005452,120]
[320948083,1711720303018,-503.68,0.0005452,120]
[320948084,1711720303028,-1618.73,0.0005452,120]
[320948085,1711720303038,-3551.69,0.0005452,120]
[320948086,1711720303047,-350.64,0.0005452,120]
[320948087,1711720303057,-1902.79,0.0005452,120]
[320948088,1711720303067,-523.06,0.0005452,120]
[320948089,1711720303076,-500.0,0.0005452,120]
[320948090,1711720303085,-783.41,0.0005452,120]
[320948091,1711720303095,-1110.8,0.0005452,120]
[320948092,1711720303104,-500.0,0.0005452,120]
[320948093,1711720303114,-516.74,0.0005452,120]
[320948094,1711720303123,-500.0,0.0005452,120]
[320948095,1711720303133,-728.83,0.0005452,21]
[320948096,1711720303143,-1108.05,0.0005452,120]
[320948097,1711720303153,-988.84,0.0005452,120]
[320948098,1711720303162,-627.93,0.0005452,120]
[320948099,1711720303173,-500.0,0.0005452,120]
[320948100,1711720303182,-743.49,0.0005452,120]
[320948101,1711720303191,-1845.14,0.0005452,120]
[320948102,1711720303201,-826.94,0.0005452,120]
[320948103,1711720303211,-838.3,0.0005452,120]
[320948104,1711720303220,-679.1,0.0005452,120]
[320948105,1711720303230,-2055.89,0.0005452,120]
[320948106,1711720303240,-617.83,0.0005452,120]
[320948107,1711720303249,-1240.17,0.0005452,120]
[320948108,1711720303259,-663.18,0.0005452,120]
[320948109,1711720303268,-500.0,0.0005452,120]
[320948110,1711720303277,-1451.79,0.0005452,120]
[320948111,1711720303287,-500.0,0.0005452,120]
[320948112,1711720303296,-397.450084,0.0005452,2]
[320948113,1711720303306,-230.4,0.0005463,120]
[320948114,1711720303316,-1137.41,0.00054683,120]
[320948115,1711720303325,-508.99,0.00054692,120]
[320948116,1711720303334,-151.89652581,0.000547,62]
[320948117,1711720303344,-335.18224058,0.000547,2]
[320948118,1711720303353,-1003.04,0.0005478,2]
[320948119,1711720303362,-867.0,0.00054794,120]
[320948120,1711720303372,-500.0,0.00054794,120]
[320948121,1711720303381,-627.18,0.00054794,120]
[320948122,1711720303392,-714.94,0.00054794,120]
[320948123,1711720303401,-538.01,0.00054794,120]
[320948124,1711720303415,-1007.7,0.00054794,120]
[320948125,1711720303426,-686.37,0.00054794,120]
[320948126,1711720303436,-982.95,0.00054794,120]
[320948127,1711720303445,-150.27,0.00054794,120]
[320948128,1711720303455,-3000.0,0.00054794,120]
[320948129,1711720303464,-3000.0,0.00054794,120]
[320948130,1711720303474,-500.0,0.00054794,120]
[320948131,1711720303484,-774.88,0.00054794,120]
[320948132,1711720303493,-679.79,0.00054794,120]
[320948133,1711720303504,-272.1,0.00054794,120]
[320948134,1711720303513,-853.69,0.00054794,120]
[320948135,1711720303523,-896.8,0.00054794,120]
[320948136,1711720303532,-786.23,0.00054794,120]
[320948137,1711720303542,-522.53,0.00054794,120]
[320948138,1711720303551,-594.23,0.00054794,120]
[320948139,1711720303560,-9880.52,0.00054794,120]
[320948140,1711720303570,-1749.42,0.00054794,120]
[320948141,1711720303581,-573.33,0.00054794,120]
[320948142,1711720303590,-512.31,0.00054794,120]
[320948143,1711720303600,-2122.92,0.00054794,92]
[320948144,1711720303610,-324.17,0.00054794,120]
[320948145,1711720303619,-545.68,0.00054794,120]
[320948146,1711720303628,-500.0,0.00054794,120]
[320948147,1711720303638,-1990.61,0.00054794,120]
[320948148,1711720303647,-500.0,0.00054794,120]
[320948149,1711720303656,-1229.22,0.00054794,120]
[320948150,1711720303666,-817.16,0.00054794,120]
[320948151,1711720303676,-553.19,0.00054794,120]
[320948152,1711720303685,-770.3,0.00054794,120]
[320948153,1711720303695,-4469.38,0.00054794,120]
[320948154,1711720303705,-679.26,0.00054794,120]
[320948155,1711720303714,-713.39,0.00054794,120]
[320948156,1711720303724,-885.4,0.00054794,120]
[320948157,1711720303734,-1238.51,0.00054794,120]
[320948158,1711720303743,-1635.01,0.00054794,120]
[320948159,1711720303753,-576.18,0.00054794,120]
[320948160,1711720303762,-855.16,0.00054794,120]
[320948161,1711720303772,-531.08,0.00054794,120]
[320948162,1711720303782,-534.13,0.00054794,120]
[320948163,1711720303792,-523.64,0.00054794,120]
[320948164,1711720303801,-6532.1,0.00054794,120]
[320948165,1711720303811,-560.66,0.00054794,120]
[320948166,1711720303821,-502.42,0.00054794,120]
[320948167,1711720303831,-723.57,0.00054794,120]
[320948168,1711720303840,-1682.83,0.00054794,120]
[320948169,1711720303849,-638.67,0.00054794,120]
[320948170,1711720303858,-503.68,0.00054794,120]
[320948171,1711720303867,-1618.73,0.00054794,120]
[320948172,1711720303876,-3551.69,0.00054794,120]
[320948173,1711720303885,-1902.79,0.00054794,120]
[320948174,1711720303894,-523.06,0.00054794,120]
[320948175,1711720303904,-500.0,0.00054794,120]
[320948176,1711720303913,-783.41,0.00054794,120]
[320948177,1711720303923,-1110.8,0.00054794,120]
[320948178,1711720303932,-500.0,0.00054794,120]
[320948179,1711720303941,-516.74,0.00054794,120]
[320948180,1711720303951,-580.23511082,0.00054794,120]
[320948181,1711720303960,-728.83,0.00054794,21]
[320948182,1711720303970,-1108.05,0.00054794,120]
[320948183,1711720303979,-988.84,0.00054794,120]
[320948184,1711720303988,-627.93,0.00054794,120]
[320948185,1711720303998,-395.95,0.00054794,120]
[320948186,1711720304008,-743.49,0.00054794,120]
[320948187,1711720304017,-826.94,0.00054794,120]
[320948188,1711720304027,-1845.14,0.00054794,120]
[320948189,1711720304036,-838.3,0.00054794,120]
[320948190,1711720304045,-679.1,0.00054794,120]
[320948191,1711720304054,-2055.89,0.00054794,120]
[320948192,1711720304064,-617.83,0.00054794,120]
[320948193,1711720304074,-1240.17,0.00054794,120]
[320948194,1711720304084,-663.18,0.00054794,120]
[320948195,1711720304094,-500.0,0.00054794,120]
[320948196,1711720304103,-500.0,0.00054794,120]
[320948197,1711720304113,-1451.79,0.00054794,120]
[320948198,1711720304123,-500.0,0.00054794,120]
[320948199,1711720304132,-1000.0,0.000548,120]
[320948200,1711720304142,-523.0,0.000549,40]
[320948201,1711720304151,-160.0,0.000549,10]
[320948202,1711720304280,-1137.41,0.00054957,120]
[320948203,1711720304290,-508.99,0.00054966,120]
[320948204,1711720304299,-1003.04,0.0005504,2]
[320948205,1711720304309,-867.0,0.00055068,120]
[320948206,1711720304320,-500.0,0.00055068,120]
[320948207,1711720304329,-627.18,0.00055068,120]
[320948208,1711720304338,-714.94,0.00055068,120]
[320948209,1711720304348,-538.01,0.00055068,120]
[320948210,1711720304358,-1007.7,0.00055068,120]
[320948211,1711720304367,-686.37,0.00055068,120]
[320948212,1711720304378,-982.95,0.00055068,120]
[320948213,1711720304389,-774.88,0.00055068,120]
[320948214,1711720304398,-679.79,0.00055068,120]
[320948215,1711720304411,-853.69,0.00055068,120]
[320948216,1711720304422,-896.8,0.00055068,120]
[320948217,1711720304433,-786.23,0.00055068,120]
[320948218,1711720304444,-522.53,0.00055068,120]
[320948219,1711720304453,-594.23,0.00055068,120]
[320948220,1711720304464,-9880.52,0.00055068,120]
[320948221,1711720304473,-1749.42,0.00055068,120]
[320948222,1711720304484,-573.33,0.00055068,120]
[320948223,1711720304493,-512.31,0.00055068,120]
[320948224,1711720304502,-545.68,0.00055068,120]
[320948225,1711720304511,-500.0,0.00055068,120]
[320948226,1711720304521,-1990.61,0.00055068,120]
[320948227,1711720304531,-243.35083594,0.00055068,120]
[320948228,1711720304540,-1229.22,0.00055068,120]
[320948229,1711720304549,-817.16,0.00055068,120]
[320948230,1711720304558,-553.19,0.00055068,120]
[320948231,1711720304568,-770.3,0.00055068,120]
[320948232,1711720304578,-4469.38,0.00055068,120]
[320948233,1711720304588,-679.26,0.00055068,120]
[320948234,1711720304598,-713.39,0.00055068,120]
[320948235,1711720304607,-885.4,0.00055068,120]
[320948236,1711720304616,-1238.51,0.00055068,120]
[320948237,1711720304625,-1635.01,0.00055068,120]
[320948238,1711720304635,-576.18,0.00055068,120]
[320948239,1711720304645,-855.16,0.00055068,120]
[320948240,1711720304655,-531.08,0.00055068,120]
[320948241,1711720304664,-534.13,0.00055068,120]
[320948242,1711720304674,-523.64,0.00055068,120]
[320948243,1711720304684,-6532.1,0.00055068,120]
[320948244,1711720304693,-560.66,0.00055068,120]
[320948245,1711720304703,-502.42,0.00055068,120]
[320948246,1711720304713,-723.57,0.00055068,120]
[320948247,1711720304722,-1682.83,0.00055068,120]
[320948248,1711720304732,-638.67,0.00055068,120]
[320948249,1711720304742,-503.68,0.00055068,120]
[320948250,1711720304752,-1618.73,0.00055068,120]
[320948251,1711720304762,-3551.69,0.00055068,120]